bitfinex/quotes_ETHUSD_20250414
["timestamp","ask_amount","ask_price","bid_price","bid_amount"]
[1744603508250,0.07657498,1632.7,1632.4,4.90049]
[1744603508452,0.7852,1632.8,1632.6,4.90001]
[1744603508689,0.86175946,1633.0,1632.7,4.89975]
[1744603509195,4.89937,1632.9,1632.5,4.90033]
[1744603509346,0.07656501,1632.8,1632.5,4.90033]
[1744603509771,0.07656501,1632.8,1632.5,9.80067]
[1744603510142,0.07656501,1632.8,1632.5,4.90033]
[1744603510653,0.07656501,1632.8,1632.5,9.80063]
[1744603510876,0.07656501,1632.8,1632.5,4.9003]
[1744603512375,4.97615501,1632.8,1632.5,4.9003]
[1744603512578,5.68518,1632.7,1632.3,0.7952]
[1744603512743,5.68518,1632.7,1632.2,11.06123]
[1744603512744,4.97683249,1632.6,1632.2,11.06123]
[1744603513375,4.90046,1632.5,1632.2,11.06123]
[1744603513678,4.97683249,1632.6,1632.2,4.90123]
[1744603513983,4.97683249,1632.6,1631.9,4.90212]
[1744603513984,0.7852,1632.5,1631.9,4.90212]
[1744603514152,0.7852,1632.2,1631.9,6.008332]
[1744603514491,5.76316267,1632.2,1631.9,1.106212]
[1744603514700,10.66479267,1632.2,1631.8,4.90252]
[1744603514983,5.76316267,1632.2,1631.8,4.90252]
[1744603515147,5.76316267,1632.2,1631.9,4.90224]
[1744603516245,5.76334267,1632.2,1631.7,0.7952]
[1744603516557,5.76334267,1632.2,1631.8,4.90241]
[1744603517885,5.76334267,1632.2,1631.8,9.80484]
[1744603518368,5.76334267,1632.2,1631.9,4.90226]
[1744603520194,5.76334267,1632.2,1631.8,4.90241]
[1744603520385,5.76334267,1632.2,1631.8,9.80481]
[1744603520584,5.76334267,1632.2,1631.8,11.286553]
[1744603520885,5.76334267,1632.2,1631.8,6.384143]
[1744603521088,0.86179267,1632.2,1631.8,6.384133]
[1744603521287,0.86179267,1632.2,1631.9,4.90212]
[1744603522083,5.76316267,1632.2,1631.9,4.90212]
[1744603522314,5.76316267,1632.2,1631.8,4.90239]
[1744603522589,5.76316267,1632.2,1631.8,9.80479]
[1744603523095,0.86179267,1632.2,1631.6,6.476]
[1744603523292,0.7534,1631.9,1631.6,11.37906]
[1744603523589,0.7534,1631.9,1631.6,2.008287]
[1744603523590,5.73227531,1631.9,1631.6,2.008287]
[1744603523769,4.90261,1631.8,1631.5,4.90331]
[1744603523960,4.97922093,1631.8,1631.5,4.90331]
[1744603524159,4.97922093,1631.8,1631.4,4.90367]
[1744603524492,4.90332,1631.6,1631.2,4.90434]
[1744603524800,4.90419,1631.3,1630.9,4.90514]
[1744603524978,4.98102182,1631.2,1630.9,6.06523044]
[1744603525161,4.98102182,1631.2,1630.9,1.16009044]
[1744603525363,4.98102182,1631.2,1630.8,4.90539]
[1744603525598,4.98102182,1631.2,1630.8,9.81084]
[1744603526065,0.07663182,1631.2,1630.9,4.90523]
[1744603526271,0.07663811,1631.3,1631.0,4.90493]
[1744603526662,5.6579,1631.2,1630.7,4.90586]
[1744603526972,0.07664164,1631.1,1630.8,4.90549]
[1744603527695,0.07664164,1631.1,1630.7,4.90586]
[1744603527696,4.98136164,1631.1,1630.7,4.90586]
[1744603528282,4.90538,1630.9,1630.5,4.90643]
[1744603528495,5.73543355,1630.9,1630.4,4.90657]
[1744603528667,5.73543355,1630.9,1630.5,4.90623]
[1744603528866,5.73543355,1630.9,1630.4,9.81334]
[1744603529084,5.73543355,1630.9,1630.5,4.90644]
[1744603529303,5.73543355,1630.9,1630.5,9.81275]
[1744603529797,0.83005355,1630.9,1630.7,4.90585]
[1744603530005,0.7534,1630.9,1630.6,4.906]
[1744603530205,0.7534,1630.9,1630.5,5.89072784]
[1744603530206,0.0766531,1630.8,1630.5,5.89072784]
[1744603530411,0.0766531,1630.8,1630.5,9.81266]
[1744603530593,0.0766531,1630.8,1630.6,4.90615]
[1744603530804,0.0766531,1630.8,1630.7,4.90586]
[1744603530990,0.7534,1630.9,1630.8,4.90556]
[1744603531190,0.7534,1630.9,1630.6,4.90615]
[1744603531392,0.7534,1630.9,1630.8,0.33927919]
[1744603531601,0.37224237,1632.3,1631.6,0.8005]
[1744603531799,8.3736086,1632.4,1631.4,2.53892552]
[1744603532007,8.3736086,1632.4,1630.8,53.36614182]
[1744603532008,4.90256,1631.8,1631.7,0.3249579]
[1744603532207,11.93270947,1631.8,1630.9,0.8005]
[1744603532413,11.93270947,1631.8,1631.1,4.90453]
[1744603532414,4.90327,1631.6,1631.1,4.90453]
[1744603532723,4.90257,1631.8,1631.3,4.90401]
[1744603532886,0.490257,1631.7,1631.3,4.90401]
[1744603533087,0.490257,1631.7,1631.4,0.32591312]
[1744603533522,0.07662135,1631.6,1631.4,0.32591312]
[1744603534106,0.07662135,1631.6,1631.4,5.22967312]
[1744603534813,0.83032125,1631.8,1631.6,4.90316]
[1744603535013,0.7537,1632.1,1631.6,4.90316]
[1744603535334,0.7537,1632.3,1632.0,4.90175]
[1744603535539,0.07659259,1632.2,1632.1,4.90162]
[1744603535893,4.90017,1632.6,1632.0,4.90196]
[1744603535894,0.07659046,1632.4,1632.0,4.90196]
[1744603536099,0.07659046,1632.5,1632.3,9.80178]
[1744603536319,0.07659046,1632.5,1632.3,4.90086]
[1744603536501,0.07659046,1632.5,1632.1,9.80283]
[1744603536709,0.07659046,1632.5,1632.2,4.90114]
[1744603536923,0.83027955,1632.6,1632.5,4.90045]
[1744603537127,6.81840751,1632.6,1632.5,4.90045]
[1744603537697,6.81840751,1632.6,1632.4,4.90068]
[1744603538011,6.81840751,1632.6,1632.5,0.31336782]
[1744603539000,6.81840751,1632.6,1632.4,9.80125]
[1744603539199,6.81840751,1632.6,1632.4,4.90057]
[1744603539631,6.81840751,1632.6,1632.5,0.31336781]
[1744603539952,6.81840751,1632.6,1632.4,4.90056]
[1744603540925,5.58242075,1632.5,1632.0,4.90171]
[1744603541099,0.7537,1632.1,1631.8,4.90243]
[1744603541445,0.07659692,1632.0,1631.7,9.80538]
[1744603541660,0.07659692,1632.0,1631.8,4.90255]
[1744603542950,0.07659692,1632.0,1631.9,0.25448949]
[1744603543321,0.64979261,1632.0,1631.9,0.25448949]
[1744603543521,0.64979261,1632.0,1631.7,4.90265]
[1744603543722,5.55178261,1632.0,1631.9,0.25448949]
[1744603544118,10.45394261,1632.0,1631.5,9.8067]
[1744603544323,10.45394261,1632.0,1631.9,0.25427632]
[1744603544625,10.45394261,1632.0,1631.6,4.90315]
[1744603544944,6.476,1631.9,1631.7,0.25538131]
[1744603545147,0.07660904,1631.8,1631.7,0.25538131]
[1744603546554,0.07660904,1631.8,1631.5,4.90331]
[1744603547151,0.07660904,1631.8,1631.6,0.26001694]
[1744603547449,0.07660904,1631.8,1631.5,4.90345]
[1744603547848,4.97917904,1631.8,1631.4,4.90376]
[1744603548156,0.4979179,1631.7,1631.4,4.90376]
[1744603548358,0.07662118,1631.6,1631.4,4.90376]
[1744603548556,0.07662118,1631.6,1631.4,4.90364]
[1744603549125,0.07662118,1631.6,1631.4,4.9036]
[1744603549945,0.07662118,1631.6,1631.5,4.90346]
[1744603550269,0.07662118,1631.6,1631.5,5.16903058]
[1744603551957,0.07662118,1631.6,1631.5,0.26557058]
[1744603552664,0.07662118,1631.6,1631.5,5.16903058]
[1744603553839,0.07662118,1631.6,1631.5,0.26557058]
[1744603554039,5.60290709,1631.6,1631.5,0.26557058]
[1744603554244,4.90386,1631.4,1631.1,6.16]
[1744603554469,0.07663528,1631.3,1631.0,4.90485]
[1744603554960,10.63881528,1631.3,1630.8,4.90539]
[1744603555160,1.06388153,1631.2,1630.9,4.90517]
[1744603555461,0.07664362,1631.1,1630.9,9.81032]
[1744603555661,0.07664362,1631.1,1630.9,4.90515]
[1744603556381,0.07664362,1631.1,1630.9,9.81025]
[1744603557371,0.07664362,1631.1,1630.9,4.9051]
[1744603557771,0.07664362,1631.1,1631.0,0.25257413]
[1744603557965,0.07664362,1631.1,1631.0,5.15753413]
[1744603558167,0.07664172,1631.2,1631.0,5.15753413]
[1744603558682,0.07664172,1631.2,1631.0,0.25257413]
[1744603558980,0.07664823,1631.3,1631.1,4.90466]
[1744603559280,0.07664823,1631.3,1631.1,0.25251092]
[1744603559646,4.90436,1631.2,1631.1,0.25251092]
[1744603560078,4.90517,1631.0,1630.4,0.8315]
[1744603560283,0.07665345,1630.9,1630.6,4.90591]
[1744603560773,0.07665345,1630.9,1630.7,4.90585]
[1744603561079,0.07665333,1631.1,1631.0,4.90496]
[1744603561244,4.98100934,1631.2,1630.8,5.73698]
[1744603561600,0.07663934,1631.2,1630.9,4.90518]
[1744603561755,0.07663934,1631.2,1630.9,4.90526]
[1744603561955,4.98100934,1631.2,1630.9,4.90526]
[1744603562191,4.98100934,1631.2,1630.8,6.801245]
[1744603562388,4.98100934,1631.2,1630.8,6.801185]
[1744603562892,4.98100934,1631.2,1630.8,11.706575]
[1744603563072,0.07663934,1631.2,1631.0,4.90495]
[1744603563283,4.98111934,1631.2,1630.8,6.801285]
[1744603563594,5.85460127,1631.2,1630.8,4.90553]
[1744603563789,4.9047,1631.1,1630.6,5.73765]
[1744603564086,4.90527,1630.9,1630.4,6.18743312]
[1744603564258,0.07665728,1630.8,1630.5,4.90641]
[1744603564856,0.7909,1630.7,1630.1,0.7802]
[1744603565055,0.0766646,1630.6,1630.2,4.9071]
[1744603565394,11.6061146,1630.6,1630.2,9.81445]
[1744603565592,6.6996646,1630.6,1630.3,4.90706]
[1744603565781,6.6996646,1630.6,1630.5,4.90647]
[1744603565981,0.0766646,1630.6,1630.5,4.90647]
[1744603566292,0.07666511,1630.6,1630.5,4.90647]
[1744603567071,0.74905651,1630.6,1630.1,5.68785]
[1744603567279,0.7909,1630.3,1630.1,0.02]
[1744603567602,4.98405092,1630.2,1630.1,0.02]
[1744603567891,0.07668092,1630.2,1630.1,0.02]
[1744603568998,0.07668322,1630.4,1630.2,4.90736]
[1744603569185,0.07668322,1630.5,1630.3,4.90694]
[1744603569388,6.625,1630.6,1630.4,4.90651]
[1744603569389,0.07667515,1630.6,1630.4,4.90651]
[1744603569589,0.07666728,1630.7,1630.5,4.90647]
[1744603571292,0.07666728,1630.7,1630.3,4.90699]
[1744603571495,4.90618,1630.6,1630.2,4.9072]
[1744603571710,0.07666973,1630.5,1630.2,4.9072]
[1744603571908,4.98321973,1630.5,1630.1,6.180609]
[1744603572206,4.98321973,1630.5,1630.2,4.90736]
[1744603572362,0.07666973,1630.5,1630.2,4.90719]
[1744603574578,0.07666973,1630.5,1630.2,9.81441]
[1744603574762,0.07666973,1630.5,1630.2,10.9231489]
[1744603575613,0.07666973,1630.5,1630.2,6.0159289]
[1744603575813,0.07666973,1630.5,1630.2,4.90719]
[1744603576417,0.07666973,1630.5,1630.2,9.81439]
[1744603577491,0.07666973,1630.5,1630.2,4.90719]
[1744603578897,0.07666973,1630.5,1630.3,4.90705]
[1744603579404,5.71136,1631.1,1630.7,4.90559]
[1744603579592,7.33008785,1631.1,1630.7,9.81122]
[1744603580000,2.42532785,1631.1,1630.8,4.90542]
[1744603580200,7.49948193,1631.2,1630.9,4.90497]
[1744603580513,7.57612344,1631.2,1630.9,9.81004]
[1744603581503,6.70264151,1631.2,1630.9,4.90497]
[1744603583411,6.70264151,1631.2,1630.9,9.81008]
[1744603583575,0.07664151,1631.2,1630.9,9.81008]
[1744603584172,0.07664151,1631.2,1630.9,4.90497]
[1744603584373,0.07664151,1631.2,1630.9,9.81007]
[1744603584684,0.07664151,1631.2,1631.0,4.90488]
[1744603584883,6.6356407,1631.3,1631.1,4.90455]
[1744603585079,0.0766407,1631.3,1631.1,4.90455]
[1744603585291,6.559,1631.5,1631.3,4.90387]
[1744603585612,0.07662185,1631.4,1631.0,9.80958]
[1744603585786,4.90423,1631.3,1630.9,6.793947]
[1744603585982,4.98041185,1631.4,1631.0,4.90484]
[1744603586197,0.07662185,1631.4,1631.1,4.90445]
[1744603586701,0.07662185,1631.4,1631.3,4.90406]
[1744603587005,6.63562357,1631.5,1631.3,9.80812]
[1744603587205,6.63562357,1631.5,1631.2,0.7719]
[1744603587406,11.53918357,1631.5,1631.1,9.80894]
[1744603587705,6.63562357,1631.5,1631.3,4.90381]
[1744603587915,5.72839,1631.8,1631.4,4.90376]
[1744603588096,0.07661433,1631.7,1631.4,4.90376]
[1744603588287,0.07661433,1631.7,1631.5,4.90332]
[1744603589330,0.07661433,1631.7,1631.6,4.90316]
[1744603589536,6.558,1631.9,1631.7,4.90286]
[1744603589697,6.558,1631.9,1631.7,9.80572]
[1744603590207,6.558,1631.9,1631.8,4.90256]
[1744603590912,11.4604,1631.9,1631.6,0.7719]
[1744603591113,0.8258,1631.8,1631.5,9.80676]
[1744603591313,5.72909,1631.6,1631.1,4.90455]
[1744603591483,0.07662932,1631.5,1631.2,4.9042]
[1744603592419,5.72909,1631.6,1631.3,4.90395]
[1744603592420,0.90242634,1631.6,1631.3,4.90395]
[1744603592715,5.80573634,1631.6,1631.3,0.980813]
[1744603593014,5.80573634,1631.6,1631.2,0.7719]
[1744603593313,5.80573634,1631.6,1631.2,5.67607]
[1744603593912,5.80573634,1631.6,1631.2,10.58032]
[1744603594110,5.80573634,1631.6,1631.2,5.67607]
[1744603594509,4.90352,1631.5,1631.0,5.72322]
[1744603594814,4.98050745,1631.4,1631.1,3.0]
[1744603595331,0.7677,1631.2,1630.9,4.90526]
[1744603595485,0.84433863,1631.2,1630.9,4.90526]
[1744603595685,5.74882863,1631.2,1630.9,4.90526]
[1744603597994,10.65347863,1631.2,1630.8,5.72392]
[1744603598321,10.65347863,1631.2,1630.8,6.268494]
[1744603598928,4.90468,1631.1,1630.8,1.362974]
[1744603599220,4.98183563,1631.0,1630.6,5.72454]
[1744603599420,4.98183563,1631.0,1630.6,10.63053]
[1744603600023,4.98183563,1631.0,1630.6,5.72439]
[1744603601030,9.88698563,1631.0,1630.6,5.72439]
[1744603601531,4.98165563,1631.0,1630.6,8.72436]
[1744603601728,4.98165563,1631.0,1630.7,0.872436]
[1744603601898,9.88685563,1631.0,1630.7,0.872436]
[1744603602728,4.98165563,1631.0,1630.7,0.872436]
[1744603602932,0.07664563,1631.0,1630.7,5.778286]
[1744603604930,6.557,1631.1,1630.8,4.90543]
[1744603605103,6.557,1631.1,1630.9,5.395693]
[1744603606233,6.557,1631.1,1630.9,4.90515]
[1744603608538,6.557,1631.1,1630.8,4.90543]
[1744603608736,6.557,1631.1,1630.8,9.81084]
[1744603609931,5.74870046,1631.2,1630.8,9.81084]
[1744603610934,4.90499,1631.0,1630.6,5.72433]
[1744603611100,4.90499,1631.0,1630.7,5.478273]
[1744603611308,4.98135599,1631.1,1630.7,10.383983]
[1744603611863,0.07664599,1631.1,1630.8,4.90542]
[1744603612081,5.74874599,1631.2,1630.9,4.90522]
[1744603613369,4.98104599,1631.2,1630.9,4.90522]
[1744603613666,0.07664599,1631.2,1630.9,4.90522]
[1744603615632,12.14423263,1631.6,1631.2,4.90436]
[1744603615633,13.4716,1631.6,1631.2,4.90436]
[1744603615825,6.54,1631.6,1631.4,4.9037]
[1744603616156,4.97950908,1631.7,1631.4,4.9037]
[1744603616358,4.97950908,1631.7,1631.1,0.55]
[1744603616359,4.90362,1631.5,1631.1,4.90462]
[1744603616658,4.90362,1631.5,1631.1,5.78363421]
[1744603616863,4.90362,1631.5,1631.1,10.68825421]
[1744603617156,4.90362,1631.5,1631.2,4.90434]
[1744603617358,0.07662429,1631.6,1631.3,4.90404]
[1744603620358,0.07662429,1631.6,1631.4,0.19081301]
[1744603620874,4.90346,1631.5,1631.4,0.19081301]
[1744603621034,5.66506,1631.5,1631.4,0.19081301]
[1744603621241,4.90477,1631.1,1630.8,0.7502]
[1744603621557,5.742632,1631.2,1630.9,4.90524]
[1744603622475,5.742632,1631.2,1630.8,6.7689523]
[1744603622643,4.90489,1631.1,1630.8,1.1134023]
[1744603622849,0.07664626,1631.0,1630.7,5.478293]
[1744603623481,4.90529,1630.9,1630.7,0.572433]
[1744603623779,4.90529,1630.9,1630.6,5.6563]
[1744603623948,0.7616,1630.9,1630.4,5.65695]
[1744603624153,0.07664812,1630.8,1630.5,4.90637]
[1744603624348,0.07664812,1630.8,1630.4,0.7502]
[1744603624563,6.54,1631.1,1630.8,4.9054]
[1744603624764,6.54,1631.1,1630.9,4.9052]
[1744603624765,6.61664532,1631.1,1630.9,4.9052]
[1744603624963,6.61664532,1631.1,1630.8,4.9054]
[1744603625577,6.61664532,1631.1,1630.8,9.81081]
[1744603625884,6.54,1631.1,1630.8,4.9054]
[1744603626651,6.54,1631.1,1630.9,4.90525]
[1744603626856,6.54,1631.1,1630.9,5.886315]
[1744603627058,6.54,1631.1,1630.8,4.90539]
[1744603627278,6.54,1631.1,1630.9,4.9052]
[1744603628803,0.07664186,1631.3,1631.1,4.90456]
[1744603629106,12.25729,1631.5,1631.1,9.80912]
[1744603629333,12.33391728,1631.5,1631.2,4.90433]
[1744603629692,4.90318,1631.6,1631.2,5.885079]
[1744603629894,0.07662912,1631.5,1631.3,4.90406]
[1744603630095,0.07662912,1631.5,1631.1,4.90463]
[1744603630296,4.98020912,1631.5,1631.1,4.90463]
[1744603630703,4.90379,1631.4,1631.0,10.62021]
[1744603630903,4.90379,1631.4,1631.1,4.90464]
[1744603631834,4.98020912,1631.5,1631.1,10.871132]
[1744603632125,4.98020912,1631.5,1631.2,4.90436]
[1744603633126,9.88389912,1631.5,1631.1,5.966492]
[1744603634018,4.98020912,1631.5,1631.1,5.966492]
[1744603634292,9.88388912,1631.5,1631.1,5.966492]
[1744603634499,4.98020912,1631.5,1631.1,5.966492]
[1744603635432,4.98020912,1631.5,1631.1,4.9045]
[1744603635726,9.88393912,1631.5,1631.1,4.9045]
[1744603635911,4.98020912,1631.5,1631.1,4.9045]
[1744603636115,4.90379,1631.4,1631.1,4.9045]
[1744603636626,4.98020912,1631.5,1631.1,9.80902]
[1744603637037,4.98020912,1631.5,1631.1,4.9045]
[1744603637537,4.90383,1631.4,1631.1,4.9045]
[1744603639138,4.98020912,1631.5,1631.1,10.871013]
[1744603641146,9.88383912,1631.5,1631.1,5.966493]
[1744603641306,0.07662912,1631.5,1631.3,4.90394]
[1744603641511,0.07662411,1631.6,1631.3,4.90394]
[1744603641945,4.97979411,1631.6,1631.3,4.90394]
[1744603642148,5.66346,1631.4,1631.0,5.71545]
[1744603642448,9.88514184,1631.3,1630.9,7.90516]
[1744603642746,4.98083184,1631.3,1630.9,12.81026]
[1744603642947,4.98083184,1631.3,1631.0,4.90491]
[1744603643241,0.07663184,1631.3,1631.1,0.490491]
[1744603644431,5.73953406,1631.6,1631.2,9.80872]
[1744603644634,5.73953406,1631.6,1631.2,4.90436]
[1744603645952,4.9035,1631.5,1631.2,4.90436]
[1744603646352,5.73953406,1631.6,1631.2,9.80872]
[1744603646523,10.64286406,1631.6,1631.2,6.01925727]
[1744603647522,4.90353,1631.5,1631.2,6.01925727]
[1744603647968,0.07662553,1631.4,1631.2,6.01925727]
[1744603648645,4.98015552,1631.5,1631.2,6.01925727]
[1744603649153,0.07662552,1631.5,1631.3,4.904]
[1744603649361,11.51951894,1631.7,1631.3,10.90025573]
[1744603649546,11.51951894,1631.7,1631.4,4.90368]
[1744603649733,0.7597,1632.0,1631.7,4.90264]
[1744603649943,0.7597,1632.2,1631.9,4.90226]
[1744603650135,11.38525,1632.3,1632.0,4.9019]
[1744603650136,11.46184275,1632.3,1632.0,4.9019]
[1744603650660,6.484,1632.3,1632.1,4.90165]
[1744603651358,6.484,1632.3,1632.0,0.8191]
[1744603651538,4.97804273,1632.2,1631.9,0.49328719]
[1744603652142,4.97804273,1632.2,1631.8,5.72139]
[1744603652970,0.07658273,1632.2,1631.9,9.80437]
[1744603653153,6.56059019,1632.3,1632.0,4.90195]
[1744603654473,6.484,1632.3,1632.1,4.90163]
[1744603655267,6.484,1632.3,1632.0,4.90184]
[1744603655462,6.484,1632.3,1632.0,5.882245]
[1744603655658,6.484,1632.3,1632.1,4.90166]
[1744603656376,6.484,1632.3,1632.1,5.72926]
[1744603656544,0.07658311,1632.4,1632.1,5.72926]
[1744603657470,12.14259,1632.6,1632.1,5.72926]
[1744603657471,6.482,1632.6,1632.4,4.9007]
[1744603657677,6.55857317,1632.6,1632.4,4.9007]
[1744603658456,6.55857317,1632.6,1632.3,4.90105]
[1744603660491,11.45874317,1632.6,1632.3,4.90105]
[1744603661690,6.55857317,1632.6,1632.3,4.90105]
[1744603662477,58.23999,1632.8,1632.4,4.90061]
[1744603662682,0.07656496,1632.7,1632.4,0.8276]
[1744603662858,6.481,1632.9,1632.4,5.72815]
[1744603663054,6.481,1632.9,1632.6,4.89998]
[1744603663280,0.83696384,1633.0,1632.6,4.89998]
[1744603663481,4.8987,1633.1,1632.6,4.89998]
[1744603663482,0.07655448,1633.1,1632.9,4.89915]
[1744603663655,0.3957081,1633.3,1633.1,4.89865]
[1744603663843,0.3957081,1633.3,1633.2,4.89835]
[1744603664246,0.3957081,1633.3,1633.2,5.47881398]
[1744603664451,0.3957081,1633.3,1633.2,5.44835]
[1744603664651,0.3957081,1633.3,1633.2,6.87934221]
[1744603665676,0.3957081,1633.3,1633.2,6.9097987]
[1744603665881,0.3957081,1633.3,1633.2,6.87934221]
[1744603666058,0.3957081,1633.3,1633.2,6.90979855]
[1744603666258,0.3957081,1633.3,1633.2,6.87934221]
[1744603666460,0.3957081,1633.3,1633.2,6.90979856]
[1744603666647,0.3957081,1633.3,1633.2,6.87934221]
[1744603666866,0.3957081,1633.3,1633.2,1.43099221]
[1744603667066,0.3957081,1633.3,1633.1,5.72613]
[1744603667268,0.3957081,1633.3,1633.2,4.89835]
[1744603667495,0.3957081,1633.3,1633.1,5.75659778]
[1744603667697,0.3957081,1633.3,1633.1,5.72606]
[1744603667888,0.3957081,1633.3,1633.2,5.470956]
[1744603668269,0.3957081,1633.3,1633.2,6.020956]
[1744603669400,0.3957081,1633.3,1633.2,0.572606]
[1744603670199,0.3957081,1633.3,1633.2,5.470956]
[1744603671316,0.3957081,1633.3,1633.2,6.020956]
[1744603671523,0.3957081,1633.3,1633.2,9.804256]
[1744603673341,0.29891847,1633.3,1633.2,9.83468554]
[1744603673618,0.02,1634.4,1633.9,4.89622]
[1744603673619,0.07650003,1634.2,1633.9,4.89622]
[1744603673919,4.89611,1634.0,1633.6,8.81548213]
[1744603674127,0.02,1634.4,1634.1,4.89544]
[1744603674818,0.02,1634.4,1634.0,5.67923]
[1744603675007,0.02,1634.4,1634.0,0.7833]
[1744603675212,0.02,1634.4,1633.9,0.55]
[1744603675213,5.69383,1634.3,1633.9,5.44614]
[1744603675522,10.66560089,1634.3,1633.9,5.44614]
[1744603675718,5.77032089,1634.3,1633.9,11.76835921]
[1744603675924,0.7986,1634.3,1634.0,4.89593]
[1744603676523,0.7986,1634.3,1634.0,4.92632242]
[1744603677026,0.7986,1634.3,1633.9,6.87221921]
[1744603677327,5.69377,1634.3,1633.9,6.87221921]
[1744603677509,4.89587,1634.1,1633.7,24.54867034]
[1744603677819,9.79181,1634.1,1633.7,11.91367034]
[1744603678033,0.07650096,1634.0,1633.7,3.0]
[1744603678195,4.89641,1633.9,1633.6,0.7978]
[1744603678597,4.8969,1633.7,1633.3,9.81143773]
[1744603678804,9.79333,1633.8,1633.4,4.89759]
[1744603679088,4.89657,1633.8,1633.4,4.89759]
[1744603679311,4.97308489,1633.8,1633.4,4.89759]
[1744603679512,4.89626,1633.9,1633.5,4.89745]
[1744603679513,4.97277482,1633.9,1633.5,4.89745]
[1744603680534,4.89657,1633.8,1633.3,9.81153773]
[1744603680704,4.89736,1633.6,1633.3,1.7782256]
[1744603680905,4.89736,1633.6,1633.2,11.05819]
[1744603681106,4.89736,1633.6,1633.2,4.89819]
[1744603681305,0.87052238,1633.7,1633.1,0.7978]
[1744603681501,4.89791,1633.4,1633.0,12.30128754]
[1744603681816,4.89865,1633.1,1633.0,2.50376754]
[1744603682014,6.74892596,1633.1,1633.0,2.50376754]
[1744603682438,6.74892596,1633.1,1632.4,4.90066]
[1744603682439,4.89967,1632.8,1632.4,4.90066]
[1744603682638,4.89967,1632.8,1632.2,16.09494566]
[1744603682639,5.69391,1632.7,1632.2,4.90133]
[1744603682838,4.90068,1632.5,1632.1,0.7978]
[1744603683026,4.97748958,1632.4,1632.1,0.569975]
[1744603683231,0.07657958,1632.4,1631.9,5.70004]
[1744603683427,4.90136,1632.2,1631.8,4.90248]
[1744603683722,0.07659101,1632.2,1631.8,4.90252]
[1744603684032,0.07659101,1632.2,1631.4,55.96794566]
[1744603684033,4.90247,1631.9,1631.5,4.90341]
[1744603684231,4.90267,1631.8,1631.4,5.70155]
[1744603684558,4.97948782,1631.7,1631.3,4.93461627]
[1744603684740,0.07660782,1631.7,1631.3,4.90399]
[1744603684948,6.474,1632.0,1631.3,4.90399]
[1744603684949,6.474,1632.0,1631.6,4.903]
[1744603685254,0.07660195,1632.0,1631.6,9.92018072]
[1744603685431,0.07660195,1632.0,1631.6,5.01718072]
[1744603685754,0.07660195,1632.0,1631.6,10.42186879]
[1744603686055,0.07660194,1632.1,1631.8,4.90235]
[1744603686232,6.55059508,1632.2,1631.8,4.90235]
[1744603686431,6.55059508,1632.2,1631.9,0.12017662]
[1744603686629,4.90191,1632.1,1631.6,11.09371807]
[1744603686938,0.07660235,1632.1,1631.8,4.90254]
[1744603687158,11.45215897,1632.2,1631.8,4.90254]
[1744603687460,6.55059897,1632.2,1631.9,0.11932188]
[1744603687628,6.55059897,1632.2,1631.9,5.02144188]
[1744603687820,6.55059897,1632.2,1631.9,0.11932188]
[1744603688024,6.55059897,1632.2,1631.9,4.90223]
[1744603688257,6.55059897,1632.2,1632.0,0.11876962]
[1744603689558,11.45207897,1632.2,1632.0,0.11876962]
[1744603690257,4.90208,1632.0,1631.6,5.40469807]
[1744603690433,0.07660322,1632.0,1631.6,5.43529512]
[1744603690758,0.07660322,1632.0,1631.7,5.44633951]
[1744603690963,6.474,1632.2,1631.8,4.9329619]
[1744603691164,6.5505919,1632.2,1631.8,4.9329619]
[1744603691359,6.5505919,1632.2,1631.8,4.90235]
[1744603691561,4.90175,1632.1,1631.7,4.90279]
[1744603691858,0.07659996,1632.0,1631.7,4.90285]
[1744603692225,0.07659996,1632.0,1631.7,4.90264]
[1744603692431,0.07659984,1632.1,1631.8,4.90253]
[1744603692659,0.07659984,1632.1,1631.8,5.883047]
[1744603692863,6.55059983,1632.2,1632.0,4.90189]
[1744603693122,6.474,1632.2,1632.1,4.90166]
[1744603693374,6.5545849,1632.5,1632.4,4.90075]
[1744603693531,0.83677245,1632.7,1632.4,9.8015]
[1744603693730,0.83677245,1632.7,1632.4,5.01939861]
[1744603693944,5.73674245,1632.7,1632.4,0.11864861]
[1744603694148,0.83677245,1632.7,1632.4,0.11864861]
[1744603694331,0.83677245,1632.7,1632.4,5.01916861]
[1744603694533,0.83677245,1632.7,1632.5,4.90042]
[1744603694848,0.83676604,1632.9,1632.7,9.79956]
[1744603695053,0.07656604,1632.9,1632.7,4.89971]
[1744603695249,4.89987,1632.7,1632.3,4.90099]
[1744603695429,4.89987,1632.7,1632.1,7.90151]
[1744603695430,4.97673948,1632.6,1632.1,7.90151]
[1744603695635,0.07656948,1632.6,1632.3,4.90081]
[1744603696468,0.07656948,1632.6,1632.1,3.868721]
[1744603696646,4.97686948,1632.6,1632.2,4.90135]
[1744603696864,9.87726948,1632.6,1632.2,4.90135]
[1744603697054,0.07656948,1632.6,1632.2,4.90117]
[1744603697253,0.07656948,1632.6,1632.4,4.90069]
[1744603697432,0.07656948,1632.6,1632.4,9.80125]
[1744603697633,0.836774,1632.7,1632.5,4.90044]
[1744603697868,6.55456962,1632.9,1632.6,4.90015]
[1744603698066,6.55456962,1632.9,1632.7,4.89974]
[1744603698267,6.478,1632.9,1632.7,4.89974]
[1744603698455,6.478,1632.9,1632.8,4.89955]
[1744603698769,0.89676014,1633.0,1632.7,4.89974]
[1744603698936,11.23468875,1633.0,1632.6,4.90014]
[1744603699273,11.23468875,1633.0,1632.6,4.90004]
[1744603700029,0.89676014,1633.0,1632.5,0.55]
[1744603700339,52.512,1633.1,1632.9,4.89903]
[1744603700539,7.3028,1633.2,1632.5,0.55]
[1744603700540,12.20122,1633.2,1632.5,0.55]
[1744603700747,0.07655137,1633.1,1632.7,4.89985]
[1744603700945,4.89926,1632.9,1632.5,4.90044]
[1744603701262,0.90135931,1632.8,1632.5,5.770244]
[1744603701430,5.80092931,1632.8,1632.5,4.90044]
[1744603701636,7.37835931,1632.8,1632.3,3.0]
[1744603701834,12.27793931,1632.8,1632.2,0.03055182]